[Event "*** Titled Tuesday Blitz"]
[Site "Chess.com"]
[Date "2021.03.02"]
[Round "4"]
[White "Hongjin"]
[Black "TST2014"]
[Result "1-0"]
[WhiteElo "2495"]
[BlackElo "2620"]
[TimeControl "180+1"]
[EndTime "10:41:21 PST"]
[Termination "Hongjin won on time"]

1. c4 {[%clk 0:03:00.9]} 1... Nf6 {[%clk 0:02:58.6]} 2. Nf3 {[%clk 0:03:01]}
2... g6 {[%clk 0:02:56.5]} 3. b3 {[%clk 0:03:00.6]} 3... Bg7 {[%clk 0:02:56.6]}
4. Bb2 {[%clk 0:03:01.1]} 4... O-O {[%clk 0:02:56.5]} 5. g3 {[%clk 0:03:01.6]}
5... a5 {[%clk 0:02:50]} 6. Bg2 {[%clk 0:03:01.1]} 6... a4 {[%clk 0:02:50.1]} 7.
O-O {[%clk 0:02:59.1]} 7... d6 {[%clk 0:02:46.3]} 8. d4 {[%clk 0:02:54.3]} 8...
Bf5 {[%clk 0:02:30.3]} 9. d5 {[%clk 0:02:33.4]} 9... c5 {[%clk 0:02:26.5]} 10.
Nbd2 {[%clk 0:02:27.6]} 10... a3 {[%clk 0:02:24.7]} 11. Bc3 {[%clk 0:02:27.3]}
11... b5 {[%clk 0:02:18.8]} 12. cxb5 {[%clk 0:02:18.2]} 12... Qb6 {[%clk
0:02:03.2]} 13. Nc4 {[%clk 0:01:57]} 13... Qxb5 {[%clk 0:02:01.5]} 14. Nfd2
{[%clk 0:01:56.6]} 14... Na6 {[%clk 0:01:53.1]} 15. e4 {[%clk 0:01:56.4]} 15...
Bg4 {[%clk 0:01:52.6]} 16. f3 {[%clk 0:01:21.3]} 16... Bc8 {[%clk 0:01:43.8]}
17. Qe2 {[%clk 0:01:14.5]} 17... Nb4 {[%clk 0:01:36.2]} 18. f4 {[%clk
0:00:36.9]} 18... Nc2 {[%clk 0:01:17.1]} 19. Rac1 {[%clk 0:00:34.1]} 19... Nd4
{[%clk 0:01:15.3]} 20. Bxd4 {[%clk 0:00:33.8]} 20... cxd4 {[%clk 0:01:16.2]} 21.
Qd3 {[%clk 0:00:26.3]} 21... Ng4 {[%clk 0:01:16.1]} 22. Nf3 {[%clk 0:00:11.3]}
22... Ne3 {[%clk 0:01:01.9]} 23. Rf2 {[%clk 0:00:10.1]} 23... Qc5 {[%clk
0:00:41.2]} 24. Rd2 {[%clk 0:00:10.1]} 24... Ba6 {[%clk 0:00:36.1]} 25. Nxd4
{[%clk 0:00:10.2]} 25... Nxc4 {[%clk 0:00:25.6]} 26. bxc4 {[%clk 0:00:08.7]}
26... Rfc8 {[%clk 0:00:26]} 27. Bf1 {[%clk 0:00:06.8]} 27... e5 {[%clk
0:00:23.7]} 28. dxe6 {[%clk 0:00:06.5]} 28... fxe6 {[%clk 0:00:24.4]} 29. Kh1
{[%clk 0:00:05.9]} 29... Kf7 {[%clk 0:00:15.2]} 30. Bh3 {[%clk 0:00:05.6]} 30...
Re8 {[%clk 0:00:13.5]} 31. Nb3 {[%clk 0:00:04.8]} 31... Qc6 {[%clk 0:00:11.7]}
32. Qxd6 {[%clk 0:00:05]} 32... Qxe4+ {[%clk 0:00:11.4]} 33. Bg2 {[%clk
0:00:05.2]} 33... Qe3 {[%clk 0:00:06.1]} 34. Nc5 {[%clk 0:00:04.2]} 34... Rad8
{[%clk 0:00:04.6]} 35. Qc7+ {[%clk 0:00:02.8]} 35... Kg8 {[%clk 0:00:04.1]} 36.
Qxd8 {[%clk 0:00:01.1]} 36... Rxd8 {[%clk 0:00:03.8]} 37. Rxd8+ {[%clk
0:00:01.1]} 37... Kf7 {[%clk 0:00:04.5]} 38. Rd7+ {[%clk 0:00:01.6]} 38... Ke8
{[%clk 0:00:04.4]} 39. Rcd1 {[%clk 0:00:01.5]} 39... Bd4 {[%clk 0:00:04.2]} 40.
R7xd4 {[%clk 0:00:01.4]} 40... Bc8 {[%clk 0:00:03.9]} 41. Nd7 {[%clk 0:00:01.4]}
41... Bxd7 {[%clk 0:00:03.9]} 42. Rxd7 {[%clk 0:00:02.3]} 42... Qc3 {[%clk
0:00:03.9]} 43. R7d2 {[%clk 0:00:03.2]} 43... Qxc4 {[%clk 0:00:04.1]} 44. Re1
{[%clk 0:00:03.8]} 44... Qc3 {[%clk 0:00:04]} 45. Rde2 {[%clk 0:00:04.7]} 45...
Kf7 {[%clk 0:00:03.2]} 46. Rxe6 {[%clk 0:00:05.2]} 46... Qb2 {[%clk 0:00:03.6]}
47. R6e2 {[%clk 0:00:06.1]} 47... Qb4 {[%clk 0:00:03.3]} 48. Bd5+ {[%clk
0:00:06.3]} 48... Kf6 {[%clk 0:00:03.7]} 49. Bb3 {[%clk 0:00:07.2]} 49... h5
{[%clk 0:00:03.9]} 50. Re6+ {[%clk 0:00:07.4]} 50... Kg7 {[%clk 0:00:03.9]} 51.
R6e2 {[%clk 0:00:07.9]} 51... h4 {[%clk 0:00:04]} 52. gxh4 {[%clk 0:00:07.7]}
52... Qb7+ {[%clk 0:00:03.9]} 53. Kg1 {[%clk 0:00:07.8]} 53... Kh6 {[%clk
0:00:04.3]} 54. Rg2 {[%clk 0:00:08.7]} 54... Kh5 {[%clk 0:00:04.5]} 55. Rf1
{[%clk 0:00:09.5]} 55... Qb6+ {[%clk 0:00:04.5]} 56. Kh1 {[%clk 0:00:09.7]}
56... Qc6 {[%clk 0:00:04.9]} 57. Rg1 {[%clk 0:00:10.1]} 57... Kxh4 {[%clk
0:00:04.6]} 58. Bd1 {[%clk 0:00:09.3]} 58... Kh3 {[%clk 0:00:04.4]} 59. Be2
{[%clk 0:00:08.8]} 59... Qe4 {[%clk 0:00:03.9]} 60. Bf1 {[%clk 0:00:09.1]} 60...
Kh4 {[%clk 0:00:03.7]} 61. f5 {[%clk 0:00:07.9]} 61... gxf5 {[%clk 0:00:03.7]}
62. Bb5 {[%clk 0:00:07.5]} 62... f4 {[%clk 0:00:03.9]} 63. Rf1 {[%clk
0:00:06.2]} 63... Kh3 {[%clk 0:00:03.6]} 64. Bd7+ {[%clk 0:00:05.5]} 64... Kh4
{[%clk 0:00:03.7]} 65. Kg1 {[%clk 0:00:05.6]} 65... Qe3+ {[%clk 0:00:03.5]} 66.
Rgf2 {[%clk 0:00:05.9]} 66... f3 {[%clk 0:00:03.1]} 67. Bc6 {[%clk 0:00:06.2]}
67... Qg5+ {[%clk 0:00:03]} 68. Kh1 {[%clk 0:00:06.2]} 68... Qc5 {[%clk
0:00:03.3]} 69. Bxf3 {[%clk 0:00:07.1]} 69... Qc3 {[%clk 0:00:03.2]} 70. Bg2
{[%clk 0:00:07.5]} 70... Qe3 {[%clk 0:00:03]} 71. Rf4+ {[%clk 0:00:07.7]} 71...
Kg5 {[%clk 0:00:03.5]} 72. R4f3 {[%clk 0:00:08.4]} 72... Qe2 {[%clk 0:00:03.2]}
73. Rg1 {[%clk 0:00:08.8]} 73... Kh4 {[%clk 0:00:02.8]} 74. Rh3+ {[%clk
0:00:09]} 74... Kg5 {[%clk 0:00:02.6]} 75. Bf1+ {[%clk 0:00:09.3]} 75... Kf4
{[%clk 0:00:02.9]} 76. Bxe2 {[%clk 0:00:09.6]} 1-0

[Event "*** Titled Tuesday Blitz"]
[Site "Chess.com"]
[Date "2021.03.02"]
[Round "4"]
[White "wadsy27"]
[Black "DenLaz"]
[Result "0-1"]
[WhiteElo "2539"]
[BlackElo "2828"]
[TimeControl "180+1"]
[EndTime "10:41:24 PST"]
[Termination "DenLaz won on time"]

1. c4 {[%clk 0:03:00.9]} 1... c6 {[%clk 0:02:58.7]} 2. g3 {[%clk 0:03:01.1]}
2... d5 {[%clk 0:02:59]} 3. Nf3 {[%clk 0:03:01.7]} 3... Nf6 {[%clk 0:02:59.2]}
4. Bg2 {[%clk 0:03:02.2]} 4... g6 {[%clk 0:02:58.8]} 5. b3 {[%clk 0:03:01.8]}
5... Bg7 {[%clk 0:02:58.8]} 6. Bb2 {[%clk 0:03:02.4]} 6... O-O {[%clk
0:02:59.2]} 7. O-O {[%clk 0:03:02.9]} 7... Bf5 {[%clk 0:02:54.2]} 8. d3 {[%clk
0:03:00.8]} 8... Nbd7 {[%clk 0:02:52]} 9. Nd4 {[%clk 0:02:57.6]} 9... e6 {[%clk
0:02:48.2]} 10. Nxf5 {[%clk 0:02:56.6]} 10... exf5 {[%clk 0:02:49.1]} 11. cxd5
{[%clk 0:02:54.9]} 11... Nxd5 {[%clk 0:02:48.9]} 12. Bxg7 {[%clk 0:02:51.1]}
12... Kxg7 {[%clk 0:02:49.8]} 13. Bxd5 {[%clk 0:02:30.7]} 13... cxd5 {[%clk
0:02:48.5]} 14. d4 {[%clk 0:02:29.8]} 14... h5 {[%clk 0:02:46.7]} 15. h4 {[%clk
0:02:25.9]} 15... f4 {[%clk 0:02:44.4]} 16. Nc3 {[%clk 0:02:25.3]} 16... fxg3
{[%clk 0:02:42.9]} 17. fxg3 {[%clk 0:02:25.2]} 17... Nf6 {[%clk 0:02:42.3]} 18.
Qd3 {[%clk 0:02:08]} 18... Rc8 {[%clk 0:02:39.3]} 19. Rf3 {[%clk 0:02:02.1]}
19... Rc6 {[%clk 0:02:35.7]} 20. Raf1 {[%clk 0:01:57.7]} 20... Re6 {[%clk
0:02:36]} 21. Rf4 {[%clk 0:01:40.7]} 21... a6 {[%clk 0:02:30.6]} 22. e4 {[%clk
0:01:36.4]} 22... dxe4 {[%clk 0:02:29.6]} 23. Nxe4 {[%clk 0:01:36.4]} 23... Nxe4
{[%clk 0:02:19.3]} 24. Rxe4 {[%clk 0:01:36.1]} 24... Rxe4 {[%clk 0:02:19.8]} 25.
Qxe4 {[%clk 0:01:36.1]} 25... Qd6 {[%clk 0:02:20.2]} 26. Kg2 {[%clk 0:01:21]}
26... Rc8 {[%clk 0:02:18.8]} 27. Rf2 {[%clk 0:01:11.3]} 27... Rc7 {[%clk
0:02:17.8]} 28. d5 {[%clk 0:01:07.6]} 28... Rd7 {[%clk 0:02:13]} 29. Qd4+ {[%clk
0:01:07.6]} 29... Kg8 {[%clk 0:02:12.1]} 30. Rd2 {[%clk 0:01:06.4]} 30... Re7
{[%clk 0:02:11.2]} 31. Rc2 {[%clk 0:01:02.9]} 31... Re8 {[%clk 0:02:10.5]} 32.
Rf2 {[%clk 0:00:49.8]} 32... Re5 {[%clk 0:02:05.5]} 33. Rd2 {[%clk 0:00:48.3]}
33... Rf5 {[%clk 0:02:02.7]} 34. Qe4 {[%clk 0:00:40.6]} 34... Kg7 {[%clk
0:02:01.5]} 35. Qd4+ {[%clk 0:00:40.2]} 35... Kh7 {[%clk 0:02:00.8]} 36. Qe4
{[%clk 0:00:39.7]} 36... Re5 {[%clk 0:01:58.7]} 37. Qf3 {[%clk 0:00:38.4]} 37...
Kg7 {[%clk 0:01:57.9]} 38. Qc3 {[%clk 0:00:34.7]} 38... f6 {[%clk 0:01:52.7]}
39. Qd4 {[%clk 0:00:30.9]} 39... Re7 {[%clk 0:01:52.4]} 40. b4 {[%clk
0:00:28.9]} 40... Rd7 {[%clk 0:01:49.4]} 41. a4 {[%clk 0:00:25.5]} 41... Re7
{[%clk 0:01:41.1]} 42. a5 {[%clk 0:00:25.4]} 42... Re5 {[%clk 0:01:37.5]} 43.
Qc5 {[%clk 0:00:24.1]} 43... Qxc5 {[%clk 0:01:33.3]} 44. bxc5 {[%clk 0:00:24]}
44... Kf7 {[%clk 0:01:34.2]} 45. Rb2 {[%clk 0:00:23]} 45... Rxd5 {[%clk
0:01:34.3]} 46. Rxb7+ {[%clk 0:00:23.1]} 46... Ke6 {[%clk 0:01:34.9]} 47. Rb6+
{[%clk 0:00:23.1]} 47... Kf5 {[%clk 0:01:35.5]} 48. Rxa6 {[%clk 0:00:19.9]}
48... Rxc5 {[%clk 0:01:35.5]} 49. Ra8 {[%clk 0:00:18.9]} 49... Kg4 {[%clk
0:01:33.8]} 50. a6 {[%clk 0:00:19.1]} 50... Rc2+ {[%clk 0:01:33.5]} 51. Kf1
{[%clk 0:00:18.9]} 51... Ra2 {[%clk 0:01:29.3]} 52. a7 {[%clk 0:00:19]} 52...
Kf3 {[%clk 0:00:46.1]} 53. Ke1 {[%clk 0:00:18.5]} 53... Ra1+ {[%clk 0:00:23.4]}
54. Kd2 {[%clk 0:00:17.8]} 54... Kxg3 {[%clk 0:00:18]} 55. Rg8 {[%clk
0:00:17.8]} 55... Rxa7 {[%clk 0:00:18]} 56. Rxg6+ {[%clk 0:00:18]} 56... Kxh4
{[%clk 0:00:18.3]} 57. Rxf6 {[%clk 0:00:18.3]} 57... Re7 {[%clk 0:00:19]} 58.
Rg6 {[%clk 0:00:15.7]} 58... Kh3 {[%clk 0:00:19]} 59. Rg8 {[%clk 0:00:14.2]}
59... h4 {[%clk 0:00:19.1]} 60. Kd3 {[%clk 0:00:13]} 60... Kh2 {[%clk
0:00:19.4]} 61. Kd2 {[%clk 0:00:12.4]} 61... h3 {[%clk 0:00:19.4]} 62. Kd3
{[%clk 0:00:12.6]} 62... Kh1 {[%clk 0:00:19.1]} 63. Kd2 {[%clk 0:00:12.7]} 63...
h2 {[%clk 0:00:18.8]} 64. Kd1 {[%clk 0:00:12.9]} 64... Re5 {[%clk 0:00:13.8]}
65. Kd2 {[%clk 0:00:12.3]} 65... Ra5 {[%clk 0:00:11.9]} 66. Ke2 {[%clk
0:00:10.6]} 66... Ra1 {[%clk 0:00:12.4]} 67. Kf2 {[%clk 0:00:09.3]} 67... Rg1
{[%clk 0:00:13.3]} 68. Ra8 {[%clk 0:00:05.7]} 68... Rc1 {[%clk 0:00:12.3]} 69.
Rg8 {[%clk 0:00:04.8]} 69... Rc2+ {[%clk 0:00:11.9]} 70. Kf1 {[%clk 0:00:03.8]}
70... Rc4 {[%clk 0:00:12.3]} 71. Kf2 {[%clk 0:00:03.8]} 71... Rf4+ {[%clk
0:00:11.3]} 72. Ke2 {[%clk 0:00:03]} 72... Rf7 {[%clk 0:00:10.1]} 73. Ke1 {[%clk
0:00:03.3]} 73... Ra7 {[%clk 0:00:10.2]} 74. Kf2 {[%clk 0:00:03.5]} 74... Ra1
{[%clk 0:00:10]} 75. Ke2 {[%clk 0:00:02.7]} 75... Rg1 {[%clk 0:00:09.5]} 76. Rh8
{[%clk 0:00:02.7]} 76... Kg2 {[%clk 0:00:09.8]} 77. Rg8+ {[%clk 0:00:03]} 77...
Kh3 {[%clk 0:00:10.2]} 78. Rh8+ {[%clk 0:00:03.4]} 78... Kg3 {[%clk 0:00:10.8]}
0-1

[Event "*** Titled Tuesday Blitz"]
[Site "Chess.com"]
[Date "2021.03.02"]
[Round "4"]
[White "Kale36"]
[Black "WonderChampion"]
[Result "1-0"]
[WhiteElo "2294"]
[BlackElo "2087"]
[TimeControl "180+1"]
[EndTime "10:41:31 PST"]
[Termination "Kale36 won on time"]

1. d4 {[%clk 0:03:00.9]} 1... d5 {[%clk 0:02:56.7]} 2. Nc3 {[%clk 0:02:59.8]}
2... e6 {[%clk 0:02:56.3]} 3. Nf3 {[%clk 0:02:59.2]} 3... Bb4 {[%clk 0:02:55.2]}
4. Qd3 {[%clk 0:02:57.6]} 4... Nf6 {[%clk 0:02:54]} 5. Bg5 {[%clk 0:02:56.5]}
5... O-O {[%clk 0:02:53.1]} 6. a3 {[%clk 0:02:56.2]} 6... Bd6 {[%clk 0:02:51.2]}
7. e4 {[%clk 0:02:54.7]} 7... dxe4 {[%clk 0:02:50.4]} 8. Nxe4 {[%clk 0:02:54.4]}
8... Be7 {[%clk 0:02:51.3]} 9. Bxf6 {[%clk 0:02:46.1]} 9... Bxf6 {[%clk
0:02:52.2]} 10. c3 {[%clk 0:02:46]} 10... Bd7 {[%clk 0:02:47.5]} 11. Qc2 {[%clk
0:02:45.2]} 11... Nc6 {[%clk 0:02:42.2]} 12. Bd3 {[%clk 0:02:44.7]} 12... h6
{[%clk 0:02:38]} 13. Nc5 {[%clk 0:02:42.4]} 13... b6 {[%clk 0:02:34.8]} 14. Nxd7
{[%clk 0:02:34.5]} 14... Qxd7 {[%clk 0:02:35.7]} 15. Bh7+ {[%clk 0:02:33.8]}
15... Kh8 {[%clk 0:02:26.7]} 16. Be4 {[%clk 0:02:34.7]} 16... Rad8 {[%clk
0:02:23.9]} 17. O-O {[%clk 0:02:34]} 17... Ne7 {[%clk 0:02:20.1]} 18. a4 {[%clk
0:02:30.6]} 18... Nd5 {[%clk 0:02:18.7]} 19. g3 {[%clk 0:02:24.6]} 19... c6
{[%clk 0:02:16]} 20. a5 {[%clk 0:02:23.8]} 20... b5 {[%clk 0:02:13.7]} 21. Bxd5
{[%clk 0:02:12.6]} 21... Qxd5 {[%clk 0:02:11.3]} 22. Qe2 {[%clk 0:02:08.5]}
22... Rfe8 {[%clk 0:02:02.4]} 23. Rfe1 {[%clk 0:02:08.3]} 23... c5 {[%clk
0:01:58.6]} 24. dxc5 {[%clk 0:02:04.9]} 24... Qxc5 {[%clk 0:01:59.5]} 25. Rad1
{[%clk 0:02:04.9]} 25... Qc6 {[%clk 0:01:47.2]} 26. Ne5 {[%clk 0:01:56.3]} 26...
Qb7 {[%clk 0:01:42.3]} 27. Qf3 {[%clk 0:01:44.3]} 27... Qxf3 {[%clk 0:01:35.9]}
28. Nxf3 {[%clk 0:01:45.2]} 28... Rxd1 {[%clk 0:01:30.6]} 29. Rxd1 {[%clk
0:01:44.7]} 29... Rd8 {[%clk 0:01:31.5]} 30. Rxd8+ {[%clk 0:01:43.5]} 30... Bxd8
{[%clk 0:01:32.4]} 31. a6 {[%clk 0:01:42.1]} 31... Bb6 {[%clk 0:01:30.2]} 32.
Ne5 {[%clk 0:01:29.4]} 32... Kg8 {[%clk 0:01:27.2]} 33. Nd7 {[%clk 0:01:29.9]}
33... Bc7 {[%clk 0:01:24.3]} 34. f4 {[%clk 0:01:27.6]} 34... f6 {[%clk
0:01:21.7]} 35. Kf2 {[%clk 0:01:22.2]} 35... Kf7 {[%clk 0:01:19.7]} 36. Ke3
{[%clk 0:01:11.5]} 36... Ke7 {[%clk 0:01:18.2]} 37. Nc5 {[%clk 0:01:11.5]} 37...
Bb6 {[%clk 0:01:18.1]} 38. Kd4 {[%clk 0:01:10.5]} 38... Kd6 {[%clk 0:01:16.2]}
39. b4 {[%clk 0:01:09.9]} 39... Bxc5+ {[%clk 0:00:52.2]} 40. bxc5+ {[%clk
0:01:09]} 40... Kc6 {[%clk 0:00:52.9]} 41. g4 {[%clk 0:01:02.1]} 41... g6 {[%clk
0:00:51.9]} 42. h4 {[%clk 0:00:50.2]} 42... h5 {[%clk 0:00:50.5]} 43. g5 {[%clk
0:00:46.9]} 43... f5 {[%clk 0:00:43.2]} 44. Ke5 {[%clk 0:00:24.9]} 44... Kxc5
{[%clk 0:00:42.2]} 45. Kxe6 {[%clk 0:00:25.4]} 45... Kc4 {[%clk 0:00:42.8]} 46.
Kf6 {[%clk 0:00:25.9]} 46... Kxc3 {[%clk 0:00:43.4]} 47. Kxg6 {[%clk 0:00:26.6]}
47... b4 {[%clk 0:00:44.1]} 48. Kh6 {[%clk 0:00:20.4]} 48... b3 {[%clk
0:00:43.8]} 49. g6 {[%clk 0:00:21]} 49... b2 {[%clk 0:00:44.2]} 50. g7 {[%clk
0:00:21.7]} 50... b1=Q {[%clk 0:00:44.6]} 51. g8=Q {[%clk 0:00:22.2]} 51... Qe4
{[%clk 0:00:36.8]} 52. Kxh5 {[%clk 0:00:14.5]} 52... Qf3+ {[%clk 0:00:33.2]} 53.
Kg6 {[%clk 0:00:12.4]} 53... Qg4+ {[%clk 0:00:30.6]} 54. Kf7 {[%clk 0:00:11.4]}
54... Qxf4 {[%clk 0:00:31]} 55. Qg5 {[%clk 0:00:07.3]} 55... Qc7+ {[%clk
0:00:29.2]} 56. Kg6 {[%clk 0:00:07]} 56... f4 {[%clk 0:00:21.3]} 57. h5 {[%clk
0:00:07.3]} 57... Kd3 {[%clk 0:00:12.9]} 58. h6 {[%clk 0:00:06.6]} 58... Ke3
{[%clk 0:00:12.2]} 59. h7 {[%clk 0:00:06.8]} 59... Qd6+ {[%clk 0:00:10.9]} 60.
Qf6 {[%clk 0:00:06.8]} 60... Qd3+ {[%clk 0:00:11]} 61. Qf5 {[%clk 0:00:06.6]}
61... Qd6+ {[%clk 0:00:10]} 62. Qf6 {[%clk 0:00:06.7]} 62... Qd3+ {[%clk
0:00:09.8]} 63. Kg7 {[%clk 0:00:07.2]} 63... Qd7+ {[%clk 0:00:09.7]} 64. Qf7
{[%clk 0:00:07.6]} 64... Qd4+ {[%clk 0:00:10]} 65. Qf6 {[%clk 0:00:07.5]} 65...
Qd7+ {[%clk 0:00:10]} 66. Kg8 {[%clk 0:00:07.9]} 66... Qe8+ {[%clk 0:00:08.5]}
67. Qf8 {[%clk 0:00:07.6]} 67... Qe6+ {[%clk 0:00:08.6]} 68. Qf7 {[%clk
0:00:07.8]} 68... Qc8+ {[%clk 0:00:08]} 69. Kg7 {[%clk 0:00:07.9]} 69... Qg4+
{[%clk 0:00:07.4]} 70. Kf6 {[%clk 0:00:07.9]} 70... Qh4+ {[%clk 0:00:04.1]} 71.
Ke6 {[%clk 0:00:08.3]} 71... Qh6+ {[%clk 0:00:03.1]} 72. Ke7 {[%clk 0:00:08.2]}
72... Qg5+ {[%clk 0:00:03.1]} 73. Ke8 {[%clk 0:00:07.4]} 1-0

[Event "*** Titled Tuesday Blitz"]
[Site "Chess.com"]
[Date "2021.03.02"]
[Round "4"]
[White "GM_dmitrij"]
[Black "Jungle_Jaguar"]
[Result "1-0"]
[WhiteElo "3014"]
[BlackElo "2614"]
[TimeControl "180+1"]
[EndTime "10:41:42 PST"]
[Termination "GM_dmitrij won by checkmate"]

1. e4 {[%clk 0:03:00.9]} 1... c5 {[%clk 0:02:59.5]} 2. Nf3 {[%clk 0:03:01.2]}
2... d6 {[%clk 0:03:00.1]} 3. Bb5+ {[%clk 0:03:01.2]} 3... Nd7 {[%clk
0:02:59.9]} 4. O-O {[%clk 0:03:01.2]} 4... Nf6 {[%clk 0:02:59.2]} 5. Re1 {[%clk
0:03:00.7]} 5... e6 {[%clk 0:02:58.7]} 6. c3 {[%clk 0:02:58.1]} 6... Be7 {[%clk
0:02:54.6]} 7. d4 {[%clk 0:02:57.9]} 7... O-O {[%clk 0:02:55.3]} 8. Bg5 {[%clk
0:02:45.6]} 8... a6 {[%clk 0:02:52.8]} 9. Bf1 {[%clk 0:02:42.3]} 9... b5 {[%clk
0:02:50.8]} 10. a4 {[%clk 0:02:41.2]} 10... bxa4 {[%clk 0:02:40.9]} 11. Qxa4
{[%clk 0:02:31.5]} 11... Bb7 {[%clk 0:02:41.2]} 12. Nbd2 {[%clk 0:02:31.3]}
12... h6 {[%clk 0:02:37]} 13. Bh4 {[%clk 0:02:31]} 13... d5 {[%clk 0:02:15.4]}
14. e5 {[%clk 0:02:22.1]} 14... Ne4 {[%clk 0:02:15.6]} 15. Bxe7 {[%clk
0:02:22.3]} 15... Qxe7 {[%clk 0:02:16.5]} 16. Nxe4 {[%clk 0:02:09.1]} 16... dxe4
{[%clk 0:02:17.4]} 17. Nd2 {[%clk 0:02:10]} 17... cxd4 {[%clk 0:01:58.8]} 18.
cxd4 {[%clk 0:02:10.9]} 18... Rfb8 {[%clk 0:01:36.1]} 19. Qa3 {[%clk 0:01:42.9]}
19... Qh4 {[%clk 0:01:06.2]} 20. Qg3 {[%clk 0:01:14.5]} 20... Qxg3 {[%clk
0:00:49.7]} 21. hxg3 {[%clk 0:01:15.4]} 21... Bd5 {[%clk 0:00:50.4]} 22. b3
{[%clk 0:00:57.6]} 22... Rb4 {[%clk 0:00:48]} 23. Ra4 {[%clk 0:00:51.9]} 23...
Rab8 {[%clk 0:00:42.8]} 24. Bxa6 {[%clk 0:00:38.8]} 24... Bxb3 {[%clk
0:00:42.9]} 25. Rxb4 {[%clk 0:00:38.6]} 25... Rxb4 {[%clk 0:00:42.8]} 26. Nxb3
{[%clk 0:00:39.5]} 26... Rxb3 {[%clk 0:00:39.8]} 27. Rxe4 {[%clk 0:00:40.4]}
27... Rb1+ {[%clk 0:00:29.6]} 28. Kh2 {[%clk 0:00:40.1]} 28... Rb4 {[%clk
0:00:27.4]} 29. f3 {[%clk 0:00:31.3]} 29... g6 {[%clk 0:00:18.3]} 30. Kg1 {[%clk
0:00:28.8]} 30... Nb6 {[%clk 0:00:17.7]} 31. Kf2 {[%clk 0:00:18.7]} 31... Nd5
{[%clk 0:00:17.7]} 32. Rh4 {[%clk 0:00:17.3]} 32... Kg7 {[%clk 0:00:17.9]} 33.
Bd3 {[%clk 0:00:12.9]} 33... Ne7 {[%clk 0:00:18.1]} 34. Re4 {[%clk 0:00:11.6]}
34... Nd5 {[%clk 0:00:14.9]} 35. Be2 {[%clk 0:00:10.5]} 35... Rb2 {[%clk
0:00:14.4]} 36. Kf1 {[%clk 0:00:09.9]} 36... Nc3 {[%clk 0:00:13.9]} 37. Re3
{[%clk 0:00:10.4]} 37... Nd5 {[%clk 0:00:13.2]} 38. Rd3 {[%clk 0:00:10.8]} 38...
f6 {[%clk 0:00:11.6]} 39. exf6+ {[%clk 0:00:10.1]} 39... Kxf6 {[%clk 0:00:12.5]}
40. g4 {[%clk 0:00:09.5]} 40... Nf4 {[%clk 0:00:11.7]} 41. Re3 {[%clk
0:00:09.5]} 41... Rb1+ {[%clk 0:00:10.3]} 42. Kf2 {[%clk 0:00:09.4]} 42... Rb2
{[%clk 0:00:11.2]} 43. g3 {[%clk 0:00:09.5]} 43... Nd5 {[%clk 0:00:11.4]} 44.
Rd3 {[%clk 0:00:09.8]} 44... g5 {[%clk 0:00:11.7]} 45. Ke1 {[%clk 0:00:09.7]}
45... Nb4 {[%clk 0:00:10.1]} 46. Rd2 {[%clk 0:00:09.6]} 46... Rb1+ {[%clk
0:00:08.7]} 47. Kf2 {[%clk 0:00:10]} 47... Nd5 {[%clk 0:00:09.3]} 48. Bc4 {[%clk
0:00:10.2]} 48... Nb6 {[%clk 0:00:09.8]} 49. Bd3 {[%clk 0:00:09.7]} 49... Rb4
{[%clk 0:00:10]} 50. Be4 {[%clk 0:00:09.9]} 50... Nc4 {[%clk 0:00:10.7]} 51. Rc2
{[%clk 0:00:10.2]} 51... Nb6 {[%clk 0:00:10.9]} 52. Ke3 {[%clk 0:00:10.6]} 52...
Rb3+ {[%clk 0:00:10.3]} 53. Ke2 {[%clk 0:00:10.7]} 53... Na4 {[%clk 0:00:10]}
54. Rc6 {[%clk 0:00:10]} 54... Nc3+ {[%clk 0:00:09.7]} 55. Kf2 {[%clk
0:00:10.6]} 55... Rb2+ {[%clk 0:00:09]} 56. Ke3 {[%clk 0:00:10.9]} 56... Nd1+
{[%clk 0:00:09.1]} 57. Kd3 {[%clk 0:00:10.2]} 57... Nf2+ {[%clk 0:00:09.4]} 58.
Kc3 {[%clk 0:00:10.3]} 58... Re2 {[%clk 0:00:08.7]} 59. Bd5 {[%clk 0:00:09.1]}
59... Ke7 {[%clk 0:00:07.5]} 60. Bc4 {[%clk 0:00:09.3]} 60... Re3+ {[%clk
0:00:07.9]} 61. Kd2 {[%clk 0:00:09.3]} 61... Rxf3 {[%clk 0:00:08.2]} 62. Rxe6+
{[%clk 0:00:09.6]} 62... Kf8 {[%clk 0:00:08.8]} 63. Ke2 {[%clk 0:00:09.9]} 63...
Rf7 {[%clk 0:00:08.8]} 64. Rxh6 {[%clk 0:00:10]} 64... Nxg4 {[%clk 0:00:08.2]}
65. Bxf7 {[%clk 0:00:10.1]} 65... Nxh6 {[%clk 0:00:07.9]} 66. Be6 {[%clk
0:00:11]} 66... Ke7 {[%clk 0:00:07.8]} 67. d5 {[%clk 0:00:11.4]} 67... Kd6
{[%clk 0:00:03.3]} 68. Kd3 {[%clk 0:00:11.6]} 68... Ke5 {[%clk 0:00:02.8]} 69.
Kc4 {[%clk 0:00:12]} 69... g4 {[%clk 0:00:02.8]} 70. Kc5 {[%clk 0:00:11.4]}
70... Kf6 {[%clk 0:00:03.1]} 71. Kc6 {[%clk 0:00:11.3]} 71... Ke7 {[%clk
0:00:03.4]} 72. Kc7 {[%clk 0:00:11.7]} 72... Kf6 {[%clk 0:00:03.5]} 73. Kd6
{[%clk 0:00:12.6]} 73... Kg7 {[%clk 0:00:03.7]} 74. Ke5 {[%clk 0:00:13.5]} 74...
Kf8 {[%clk 0:00:04]} 75. Kf6 {[%clk 0:00:13.4]} 75... Ke8 {[%clk 0:00:04.9]} 76.
Kg6 {[%clk 0:00:13.4]} 76... Nf7 {[%clk 0:00:04.7]} 77. Bxf7+ {[%clk 0:00:13.5]}
77... Kf8 {[%clk 0:00:05.6]} 78. Be6 {[%clk 0:00:14.4]} 78... Ke7 {[%clk
0:00:05]} 79. Kg5 {[%clk 0:00:15.3]} 79... Kf8 {[%clk 0:00:04.5]} 80. Kxg4
{[%clk 0:00:16.2]} 80... Kg7 {[%clk 0:00:05.4]} 81. Kf4 {[%clk 0:00:17]} 81...
Kf6 {[%clk 0:00:06]} 82. g4 {[%clk 0:00:17.9]} 82... Kg6 {[%clk 0:00:06.2]} 83.
g5 {[%clk 0:00:18.8]} 83... Kg7 {[%clk 0:00:07.1]} 84. Kf5 {[%clk 0:00:19.1]}
84... Kh7 {[%clk 0:00:07.5]} 85. d6 {[%clk 0:00:20]} 85... Kh8 {[%clk
0:00:08.4]} 86. Kf6 {[%clk 0:00:18.8]} 86... Kh7 {[%clk 0:00:08.7]} 87. d7
{[%clk 0:00:19.5]} 87... Kh8 {[%clk 0:00:09.6]} 88. d8=Q+ {[%clk 0:00:19.3]}
88... Kh7 {[%clk 0:00:10.5]} 89. Bf5# {[%clk 0:00:20.1]} 1-0